fUST/lending_fUST_20251219
["ID","MTS","AMOUNT","RATE_DAILY","PERIOD"]
[399162659,1766130651396,-166.811071,0.00041219,120]
[399162660,1766130651405,-166.811071,0.00041219,120]
[399162661,1766130651415,-168.199483,0.0004122,120]
[399162662,1766130651424,-259.446183,0.0004122,120]
[399162663,1766130651433,-259.446183,0.0004122,120]
[399162664,1766130651442,-259.446183,0.0004122,120]
[399162665,1766130651451,-259.446183,0.0004122,120]
[399162666,1766130651460,-760.480191,0.0004122,120]
[399162667,1766130651469,-760.480191,0.0004122,120]
[399162668,1766130651479,-760.480191,0.0004122,120]
[399162669,1766130651490,-760.480191,0.0004122,120]
[399162670,1766130651499,-429.188524,0.0004122,120]
[399162671,1766130651507,-429.188524,0.0004122,120]
[399162672,1766130651516,-429.188524,0.0004122,120]
[399162673,1766130651525,-429.188524,0.0004122,120]
[399162674,1766130651534,-197.525072,0.0004122,120]
[399162675,1766130651543,-197.525072,0.0004122,120]
[399162676,1766130651552,-197.525072,0.0004122,120]
[399162677,1766130651560,-197.525072,0.0004122,120]
[399162678,1766130651569,-578.645627,0.0004122,120]
[399162679,1766130651577,-578.645627,0.0004122,120]
[399162680,1766130651586,-578.645627,0.0004122,120]
[399162681,1766130651595,-578.645627,0.0004122,120]
[399162682,1766130651605,-153.731102,0.0004122,120]
[399162683,1766130651614,-151.0,0.0004122,120]
[399162684,1766130651623,-151.0,0.0004122,120]
[399162685,1766130651633,-187.410336,0.0004122,15]
[399162686,1766130651646,-187.410336,0.0004122,15]
[399162687,1766130651656,-187.410336,0.0004122,15]
[399162688,1766130651665,-187.410336,0.0004122,15]
[399162689,1766130651675,-1335.069094,0.0004122,120]
[399162690,1766130651686,-151.0,0.0004122,120]
[399162691,1766130651697,-1335.069094,0.0004122,120]
[399162692,1766130651707,-1335.069094,0.0004122,120]
[399162693,1766130651718,-1335.069094,0.0004122,120]
[399162694,1766130651728,-151.0,0.0004122,28]
[399162695,1766130651737,-151.0,0.0004122,120]
[399162696,1766130651747,-151.0,0.0004122,120]
[399162697,1766130651756,-172.957194,0.0004122,120]
[399162698,1766130651767,-151.0,0.0004122,120]
[399162699,1766130651777,-151.0,0.0004125,120]
[399162700,1766130651786,-151.0,0.0004125,120]
[399162701,1766130651795,-250.676793,0.0004125,120]
[399162702,1766130651804,-151.0,0.0004125,120]
[399162703,1766130651813,-210.928458,0.0004125,120]
[399162704,1766130651822,-500.0,0.00041643,35]
[399162705,1766130651830,-500.0,0.00042191,40]
[399162706,1766130651839,-2000.0,0.0004243,21]
[399162707,1766130651848,-200.0,0.00042645,120]
[399162708,1766130651857,-500.0,0.00042739,45]
[399162709,1766130651866,-200.0,0.00042953,120]
[399162710,1766130651875,-200.0,0.00043081,120]
[399162711,1766130651884,-1902.818,0.0004322,30]
[399162712,1766130651893,-1361.0,0.00043284,2]
[399162713,1766130651902,-415.0,0.00043284,2]
[399162714,1766130651911,-415.0,0.00043284,2]
[399162715,1766130651920,-500.0,0.00043287,50]
[399162716,1766130651930,-1000.0,0.000438,90]
[399162717,1766130651940,-348.9600063,0.00043835,55]
[399162718,1766130651949,-500.0,0.00043836,120]
[399162719,1766130651959,-200.0,0.0004403,120]
[399162720,1766130651968,-2000.0,0.0004494,21]
[399162721,1766130651977,-160.0,0.00045003,3]
[399162722,1766130651986,-346.86543,0.00046143,2]
[399162723,1766130651995,-157.417,0.00046284,2]
[399162724,1766130652004,-415.0,0.00046284,2]
[399162725,1766130652068,-500.0,0.00046575,120]
[399162726,1766130652078,-500.0,0.00046575,120]
[399162727,1766130652088,-200.0,0.000466,120]
[399162728,1766130652098,-500.0,0.00046712,120]
[399162729,1766130652108,-750.5,0.00046834,60]
[399162730,1766130652117,-735.5,0.00046834,60]
[399162731,1766130652128,-500.0,0.00046849,120]
[399162732,1766130652138,-500.0,0.00046986,120]
[399162733,1766130652148,-500.0,0.00047123,120]
[399162734,1766130652157,-200.0,0.00047257,120]
[399162735,1766130652167,-500.0,0.0004726,120]
[399162736,1766130652178,-507.26108313,0.00047397,120]
[399162737,1766130652189,-4058.68092291,0.000474,28]
[399162738,1766130652199,-2000.0,0.0004745,21]
[399162739,1766130652208,-200.0,0.00048015,120]
[399162740,1766130652217,-686.96,0.00048502,12]
[399162741,1766130652226,-302.92998342,0.00048792,120]
[399162742,1766130652235,-200.0,0.00048802,120]
[399162743,1766130652244,-200.0,0.00048812,120]
[399162744,1766130652254,-156.09174027,0.00048814,120]
[399162745,1766130652263,-8586.94,0.00049,2]
[399162746,1766130652272,-500.0,0.00049142,60]
[399162747,1766130652282,-500.0,0.00049153,60]
[399162748,1766130652291,-152.24029174,0.00049218,120]
[399162749,1766130652300,-302.92998342,0.00049218,120]
[399162750,1766130652309,-160.0,0.00049236,4]
[399162751,1766130652318,-156.09174027,0.00049263,120]
[399162752,1766130652327,-415.0,0.00049284,2]
[399162753,1766130652336,-500.0,0.00049315,120]
[399162754,1766130652345,-500.0,0.00049315,120]
[399162755,1766130652354,-310.478357,0.00049315,120]
[399162756,1766130652363,-310.478357,0.00049315,120]
[399162757,1766130652372,-310.478357,0.00049315,120]
[399162758,1766130652380,-310.478357,0.00049315,120]
[399162759,1766130652390,-310.478357,0.00049315,120]
[399162760,1766130652399,-310.478357,0.00049315,120]
[399162761,1766130652407,-310.478357,0.00049315,120]
[399162762,1766130652416,-310.478357,0.00049315,120]
[399162763,1766130652425,-310.478357,0.00049315,120]
[399162764,1766130652434,-310.478357,0.00049315,120]
[399162765,1766130652443,-310.478357,0.00049315,120]
[399162766,1766130652452,-310.478357,0.00049315,120]
[399162767,1766130652461,-310.478357,0.00049315,120]
[399162768,1766130652471,-310.478357,0.00049315,120]
[399162769,1766130652480,-310.478357,0.00049315,120]
[399162770,1766130652491,-310.478357,0.00049315,120]
[399162771,1766130652500,-251.462119,0.00049315,120]
[399162772,1766130652510,-413.535,0.00049334,86]
[399162773,1766130652520,-500.0,0.00049366,60]
[399162774,1766130652530,-150.0,0.00049604,120]
[399162775,1766130652542,-302.92998342,0.00049645,120]
[399162776,1766130652551,-156.09174027,0.00049713,120]
[399162777,1766130652560,-500.0,0.00049724,60]
[399162778,1766130652569,-242.53,0.000498,14]
[399162779,1766130652578,-500.0,0.00049803,60]
[399162780,1766130652587,-500000.0,0.000499,3]
[399162781,1766130652596,-151.0,0.000499,120]
[399162782,1766130652605,-151.0,0.000499,120]
[399162783,1766130652613,-151.0,0.000499,120]
[399162784,1766130652622,-272.294187,0.000499,120]
[399162785,1766130652632,-151.0,0.000499,120]
[399162786,1766130652647,-151.0,0.000499,120]
[399162787,1766130652658,-167.804504,0.000499,120]
[399162788,1766130652668,-167.804504,0.000499,120]
[399162789,1766130652676,-167.804504,0.000499,120]
[399162790,1766130652687,-167.804499,0.000499,120]
[399162791,1766130652696,-322.972383,0.000499,120]
[399162792,1766130652705,-322.972383,0.000499,120]
[399162793,1766130652717,-322.972383,0.000499,120]
[399162794,1766130652726,-322.972378,0.000499,120]
[399162795,1766130652735,-188.12835,0.000499,120]
[399162796,1766130652744,-156.604973,0.000499,120]
[399162797,1766130652754,-738.584773,0.000499,120]
[399162798,1766130652763,-156.604973,0.000499,120]
[399162799,1766130652772,-738.584773,0.000499,120]
[399162800,1766130652782,-156.604973,0.000499,120]
[399162801,1766130652791,-738.584773,0.000499,120]
[399162802,1766130652800,-156.60498,0.000499,120]
[399162803,1766130652809,-738.584774,0.000499,120]
[399162804,1766130652818,-374.203898,0.000499,120]
[399162805,1766130652827,-374.203898,0.000499,120]
[399162806,1766130652837,-310.478357,0.000499,120]
[399162807,1766130652846,-310.478357,0.000499,120]
[399162808,1766130652855,-151.0,0.000499,120]
[399162809,1766130652864,-374.203898,0.000499,120]
[399162810,1766130652874,-310.478357,0.000499,120]
[399162811,1766130652883,-374.203893,0.000499,120]
[399162812,1766130652892,-310.478359,0.000499,120]
[399162813,1766130652902,-259.446183,0.000499,120]
[399162814,1766130652912,-259.446183,0.000499,120]
[399162815,1766130652921,-259.446183,0.000499,120]
[399162816,1766130652931,-259.446176,0.000499,120]
[399162817,1766130652941,-760.480191,0.000499,120]
[399162818,1766130652950,-760.480191,0.000499,120]
[399162819,1766130652959,-760.480191,0.000499,120]
[399162820,1766130652969,-760.480189,0.000499,120]
[399162821,1766130652979,-429.188524,0.000499,120]
[399162822,1766130652988,-429.188524,0.000499,120]
[399162823,1766130652997,-429.188524,0.000499,120]
[399162824,1766130653007,-429.188533,0.000499,120]
[399162825,1766130653017,-197.525072,0.000499,120]
[399162826,1766130653027,-197.525072,0.000499,120]
[399162827,1766130653036,-197.525072,0.000499,120]
[399162828,1766130653047,-197.525072,0.000499,120]
[399162829,1766130653056,-578.645627,0.000499,120]
[399162830,1766130653066,-578.645627,0.000499,120]
[399162831,1766130653076,-578.645627,0.000499,120]
[399162832,1766130653086,-578.645634,0.000499,120]
[399162833,1766130653095,-151.0,0.000499,120]
[399162834,1766130653106,-187.410336,0.000499,15]
[399162835,1766130653117,-187.410336,0.000499,15]
[399162836,1766130653127,-187.410336,0.000499,15]
[399162837,1766130653137,-187.41033,0.000499,15]
[399162838,1766130653147,-1335.069094,0.000499,120]
[399162839,1766130653156,-151.0,0.000499,120]
[399162840,1766130653167,-1335.069094,0.000499,120]
[399162841,1766130653177,-1335.069094,0.000499,120]
[399162842,1766130653186,-1335.06908999,0.000499,120]
[399162843,1766130653196,-151.0,0.000499,28]
[399162844,1766130653207,-151.0,0.000499,120]
[399162845,1766130653217,-151.0,0.000499,120]
[399162846,1766130653227,-264.09234,0.000499,120]
[399162847,1766130653236,-1237.012517,0.000499,120]
[399162848,1766130653246,-1237.012517,0.000499,120]
[399162849,1766130653255,-1237.012517,0.000499,120]
[399162850,1766130653265,-1237.01251,0.000499,120]
[399162851,1766130653274,-151.0,0.000499,120]
[399162852,1766130653284,-151.0,0.000499,120]
[399162853,1766130653294,-151.0,0.000499,90]
[399162854,1766130653304,-173.679416,0.000499,90]
[399162855,1766130653313,-151.0,0.000499,120]
[399162856,1766130653322,-314.662775,0.000499,120]
[399162857,1766130653331,-314.662775,0.000499,120]
[399162858,1766130653340,-314.662775,0.000499,120]
[399162859,1766130653350,-314.662783,0.000499,120]
[399162860,1766130653359,-166.811071,0.000499,120]
[399162861,1766130653368,-166.811071,0.000499,120]
[399162862,1766130653378,-166.811071,0.000499,120]
[399162863,1766130653387,-166.811075,0.000499,120]
[399162864,1766130653396,-500.0,0.00049923,60]
[399162865,1766130653407,-200.0,0.00049954,120]
[399162866,1766130653416,-2000.0,0.0004996,21]
[399162867,1766130653425,-2026.96374905,0.0005,7]
[399162868,1766130653434,-159.57927993,0.0005,2]
[399162869,1766130653443,-100118.57676699,0.0005,10]
[399162870,1766130653452,-1041.66666667,0.0005,10]
[399162871,1766130653461,-9951.71,0.0005,14]
[399162872,1766130653471,-845.25,0.0005,120]
[399162873,1766130653480,-200.0,0.00050002,120]
[399162874,1766130653490,-500.0,0.00050058,120]
[399162875,1766130653499,-152.24029174,0.00050072,120]
[399162876,1766130653509,-302.92998342,0.00050072,120]
[399162877,1766130653519,-156.09174027,0.00050162,120]
[399162878,1766130653528,-500.0,0.00050227,120]
[399162879,1766130653537,-302.92998342,0.00050499,120]
[399162880,1766130653546,-500.0,0.00050515,120]
[399162881,1766130653556,-156.09174027,0.00050611,120]
[399162882,1766130653565,-152.24029174,0.00050925,120]
[399162883,1766130653575,-302.92998342,0.00050925,120]
[399162884,1766130653584,-156.09174027,0.0005106,120]
[399162885,1766130653594,-500.0,0.00051061,120]
[399162886,1766130653603,-500.0,0.00051324,120]
[399162887,1766130653613,-302.92998342,0.00051352,120]
[399162888,1766130653622,-8234.85,0.000514,2]
[399162889,1766130653632,-500.0,0.00051482,120]
[399162890,1766130653644,-156.09174027,0.00051509,120]
[399162891,1766130653654,-177.0,0.00051604,120]
[399162892,1766130653664,-152.24029174,0.00051779,120]
[399162893,1766130653673,-302.92998342,0.00051779,120]
[399162894,1766130653683,-843.21807738,0.00051881,120]
[399162895,1766130653692,-156.09174027,0.00051959,120]
[399162896,1766130653701,-500.0,0.00052055,120]
[399162897,1766130653711,-302.92998342,0.00052206,120]
[399162898,1766130653720,-415.0,0.00052284,120]
[399162899,1766130653729,-156.09174027,0.00052408,120]
[399162900,1766130653738,-2000.0,0.0005247,21]
[399162901,1766130653747,-346.86543,0.00052632,2]
[399162902,1766130653757,-152.24029174,0.00052632,120]
[399162903,1766130653767,-302.92998342,0.00052632,120]
[399162904,1766130653776,-8586.94,0.000527,2]
[399162905,1766130653785,-156.09174027,0.00052857,120]
[399162906,1766130653794,-160.0,0.00053,120]
[399162907,1766130653804,-302.92998342,0.00053059,120]
[399162908,1766130653814,-156.09174027,0.00053306,120]
[399162909,1766130653824,-192.7418927,0.00053425,30]
[399162910,1766130653833,-192.7418927,0.00053425,30]
[399162911,1766130653843,-160.0,0.00053468,5]
[399162912,1766130653852,-152.24029174,0.00053486,120]
[399162913,1766130653861,-302.92998342,0.00053486,120]
[399162914,1766130653871,-204.0,0.00053604,120]
[399162915,1766130653880,-156.09174027,0.00053756,120]
[399162916,1766130653889,-500.0,0.0005379,30]
[399162917,1766130653899,-500.0,0.0005379,60]
[399162918,1766130653908,-4058.68092291,0.000539,28]
[399162919,1766130653917,-302.92998342,0.00053913,120]
[399162920,1766130653927,-151.44692879,0.00054192,30]
[399162921,1766130653936,-156.09174027,0.00054205,120]
[399162922,1766130653946,-192.7418927,0.00054247,30]
[399162923,1766130653956,-192.7418927,0.00054247,30]
[399162924,1766130653965,-192.7418927,0.00054247,30]
[399162925,1766130653975,-192.7418927,0.00054247,30]
[399162926,1766130653985,-192.7418927,0.00054247,30]
[399162927,1766130653995,-192.7418927,0.00054247,30]
[399162928,1766130654005,-192.7418927,0.00054247,30]
[399162929,1766130654016,-529.9111011,0.00054247,30]
[399162930,1766130654026,-232.71453388,0.00054247,30]
[399162931,1766130654037,-152.24029174,0.0005434,120]
[399162932,1766130654047,-302.92998342,0.0005434,120]
[399162933,1766130654057,-151.44692879,0.00054438,30]
[399162934,1766130654067,-156.09174027,0.00054654,120]
[399162935,1766130654078,-289.24402607,0.00054696,30]
[399162936,1766130654088,-149275.6484,0.000547,120]
[399162937,1766130654098,-160.0,0.000547,120]
[399162938,1766130654108,-197.933016,0.000547,2]
[399162939,1766130654118,-151.44692879,0.00054712,30]
[399162940,1766130654203,-302.92998342,0.00054766,120]
[399162941,1766130654222,-780.17,0.00054794,120]
[399162942,1766130654232,-161.18917159,0.00054794,120]
[399162943,1766130654243,-504.74019689,0.00054794,120]
[399162944,1766130654253,-509.11736556,0.00054794,120]
[399162945,1766130654262,-505.19580584,0.00054794,120]
[399162946,1766130654272,-500.0,0.00054794,7]
[399162947,1766130654282,-500.0,0.00054794,120]
[399162948,1766130654292,-500.0,0.00054794,120]
[399162949,1766130654301,-500.0,0.00054794,120]
[399162950,1766130654311,-500.0,0.00054794,120]
[399162951,1766130654321,-505.19293949,0.00054794,120]
[399162952,1766130654331,-500.0,0.00054794,120]
[399162953,1766130654341,-504.07535557,0.00054794,120]
[399162954,1766130654350,-221.0448198,0.00054794,120]
[399162955,1766130654360,-505.44519902,0.00054794,120]
[399162956,1766130654370,-504.93665207,0.00054794,120]
[399162957,1766130654379,-502.33094638,0.00054794,120]
[399162958,1766130654389,-503.64663901,0.00054794,120]
[399162959,1766130654398,-500.0,0.00054794,120]
[399162960,1766130654408,-500.0,0.00054794,120]
[399162961,1766130654418,-500.0,0.00054794,120]
[399162962,1766130654428,-502.29048478,0.00054794,120]
[399162963,1766130654438,-500.0,0.00054794,120]
[399162964,1766130654448,-500.0,0.00054794,120]
[399162965,1766130654457,-500.0,0.00054794,120]
[399162966,1766130654466,-500.0,0.00054794,15]
[399162967,1766130654476,-192.05633529,0.00054794,120]
[399162968,1766130654486,-500.41798711,0.00054794,120]
[399162969,1766130654495,-501.31983262,0.00054794,120]
[399162970,1766130654506,-505.3558136,0.00054794,120]
[399162971,1766130654515,-500.0,0.00054794,120]
[399162972,1766130654525,-500.0,0.00054794,120]
[399162973,1766130654536,-500.0,0.00054794,120]
[399162974,1766130654545,-500.16870327,0.00054794,120]
[399162975,1766130654554,-500.0,0.00054794,120]
[399162976,1766130654564,-500.0,0.00054794,120]
[399162977,1766130654573,-501.21177,0.00054794,120]
[399162978,1766130654583,-502.71618605,0.00054794,120]
[399162979,1766130654593,-501.15235477,0.00054794,120]
[399162980,1766130654602,-500.0,0.00054794,120]
[399162981,1766130654611,-500.0,0.00054794,120]
[399162982,1766130654621,-1000.0,0.00054794,2]
[399162983,1766130654630,-500.0,0.00054794,120]
[399162984,1766130654642,-502.02672426,0.00054794,120]
[399162985,1766130654652,-605.70062884,0.00054794,120]
[399162986,1766130654662,-501.28953672,0.00054794,120]
[399162987,1766130654672,-500.0,0.00054794,120]
[399162988,1766130654681,-295.68473117,0.00054794,120]
[399162989,1766130654691,-500.0,0.00054794,120]
[399162990,1766130654700,-500.0,0.00054794,120]
[399162991,1766130654709,-500.0,0.00054794,120]
[399162992,1766130654720,-503.12967592,0.00054794,120]
[399162993,1766130654730,-500.2665248,0.00054794,120]
[399162994,1766130654739,-500.0,0.00054794,120]
[399162995,1766130654748,-500.0,0.00054794,30]
[399162996,1766130654757,-500.0,0.00054794,120]
[399162997,1766130654766,-374.94103716,0.00054794,120]
[399162998,1766130654776,-500.0,0.00054794,120]
[399162999,1766130654785,-503.96940194,0.00054794,120]
[399163000,1766130654795,-223.90027787,0.00054794,120]
[399163001,1766130654804,-527.64,0.00054794,120]
[399163002,1766130654813,-504.49940957,0.00054794,120]
[399163003,1766130654823,-500.0,0.00054794,120]
[399163004,1766130654833,-500.0,0.00054794,120]
[399163005,1766130654843,-500.87125296,0.00054794,120]
[399163006,1766130654853,-548.20907363,0.00054794,120]
[399163007,1766130654862,-500.99513569,0.00054794,120]
[399163008,1766130654871,-500.0,0.00054794,120]
[399163009,1766130654881,-500.0,0.00054794,120]
[399163010,1766130654891,-502.85627044,0.00054794,120]
[399163011,1766130654901,-500.0,0.00054794,120]
[399163012,1766130654910,-503.76227638,0.00054794,30]
[399163013,1766130654920,-511.18964395,0.00054794,120]
[399163014,1766130654929,-187.59981801,0.00054794,120]
[399163015,1766130654939,-808.56,0.00054794,120]
[399163016,1766130654949,-503.45135127,0.00054794,120]
[399163017,1766130654958,-551.53670231,0.00054794,120]
[399163018,1766130654967,-500.0,0.00054794,5]
[399163019,1766130654976,-501.90918863,0.00054794,120]
[399163020,1766130654986,-500.0,0.00054794,120]
[399163021,1766130654995,-501.61379624,0.00054794,120]
[399163022,1766130655008,-504.34682952,0.00054794,120]
[399163023,1766130655017,-500.0,0.00054794,120]
[399163024,1766130655026,-501.99570106,0.00054794,120]
[399163025,1766130655036,-500.0,0.00054794,120]
[399163026,1766130655046,-500.3656802,0.00054794,120]
[399163027,1766130655056,-501.02861053,0.00054794,120]
[399163028,1766130655066,-500.48720886,0.00054794,120]
[399163029,1766130655076,-500.0,0.00054794,120]
[399163030,1766130655086,-503.81708242,0.00054794,120]
[399163031,1766130655095,-504.05684918,0.00054794,120]
[399163032,1766130655105,-500.0,0.00054794,120]
[399163033,1766130655114,-579.97203904,0.00054794,120]
[399163034,1766130655124,-504.6335963,0.00054794,120]
[399163035,1766130655133,-161.41172427,0.00054794,120]
[399163036,1766130655143,-502.20275828,0.00054794,120]
[399163037,1766130655152,-503.2940211,0.00054794,120]
[399163038,1766130655160,-500.0,0.00054794,120]
[399163039,1766130655172,-500.0,0.00054794,120]
[399163040,1766130655181,-500.0,0.00054794,120]
[399163041,1766130655191,-500.0,0.00054794,120]
[399163042,1766130655200,-500.0,0.00054794,120]
[399163043,1766130655209,-189.54333411,0.00054794,120]
[399163044,1766130655219,-500.0,0.00054794,120]
[399163045,1766130655228,-500.0,0.00054794,120]
[399163046,1766130655237,-505.07431269,0.00054794,120]
[399163047,1766130655247,-501.81682967,0.00054794,120]
[399163048,1766130655258,-502.4806975,0.00054794,120]
[399163049,1766130655268,-500.0,0.00054794,120]
[399163050,1766130655277,-500.0,0.00054794,120]
[399163051,1766130655287,-500.0,0.00054794,120]
[399163052,1766130655296,-506.19154206,0.00054794,120]
[399163053,1766130655305,-500.1449276,0.00054794,120]
[399163054,1766130655314,-500.56048988,0.00054794,120]
[399163055,1766130655323,-500.0,0.00054794,120]
[399163056,1766130655332,-501.33220663,0.00054794,120]
[399163057,1766130655342,-500.0,0.00054794,120]
[399163058,1766130655352,-500.0,0.00054794,30]
[399163059,1766130655361,-500.0,0.00054794,120]
[399163060,1766130655371,-502.34461328,0.00054794,120]
[399163061,1766130655380,-500.0,0.00054794,120]
[399163062,1766130655389,-503.13714319,0.00054794,120]
[399163063,1766130655399,-500.62342357,0.00054794,120]
[399163064,1766130655408,-500.0,0.00054794,120]
[399163065,1766130655416,-500.21877595,0.00054794,120]
[399163066,1766130655426,-500.0,0.00054794,120]
[399163067,1766130655435,-520.59598645,0.00054794,120]
[399163068,1766130655444,-500.8070848,0.00054794,120]
[399163069,1766130655453,-500.0,0.00054794,20]
[399163070,1766130655462,-501.9841022,0.00054794,120]
[399163071,1766130655471,-500.0,0.00054794,120]
[399163072,1766130655480,-501.586955,0.00054794,120]
[399163073,1766130655489,-500.0,0.00054794,120]
[399163074,1766130655498,-3828.03,0.00054794,120]
[399163075,1766130655508,-500.0,0.00054794,120]
[399163076,1766130655516,-500.83206376,0.00054794,120]
[399163077,1766130655526,-500.0,0.00054794,120]
[399163078,1766130655535,-527.40360523,0.00054794,120]
[399163079,1766130655544,-1000.0,0.00054794,2]
[399163080,1766130655553,-500.0,0.00054794,120]
[399163081,1766130655562,-500.0,0.00054794,120]
[399163082,1766130655571,-500.0,0.00054794,120]
[399163083,1766130655580,-500.0,0.00054794,120]
[399163084,1766130655589,-500.0,0.00054794,120]
[399163085,1766130655598,-500.0,0.00054794,120]
[399163086,1766130655607,-505.14041715,0.00054794,120]
[399163087,1766130655616,-500.0,0.00054794,120]
[399163088,1766130655624,-500.0,0.00054794,120]
[399163089,1766130655633,-500.0,0.00054794,120]
[399163090,1766130655646,-500.0,0.00054794,120]
[399163091,1766130655656,-500.0,0.00054794,120]
[399163092,1766130655665,-504.31398256,0.00054794,120]
[399163093,1766130655674,-500.0,0.00054794,120]
[399163094,1766130655686,-500.0,0.00054794,120]
[399163095,1766130655695,-500.0,0.00054794,120]
[399163096,1766130655705,-1164.05,0.00054794,120]
[399163097,1766130655715,-500.0,0.00054794,120]
[399163098,1766130655724,-500.0,0.00054794,120]
[399163099,1766130655733,-500.0,0.00054794,120]
[399163100,1766130655743,-504.95588698,0.00054794,120]
[399163101,1766130655753,-503.64037255,0.00054794,120]
[399163102,1766130655762,-500.0,0.00054794,120]
[399163103,1766130655772,-500.0,0.00054794,2]
[399163104,1766130655781,-501.65489973,0.00054794,120]
[399163105,1766130655790,-504.60464914,0.00054794,120]
[399163106,1766130655799,-500.0,0.00054794,120]
[399163107,1766130655808,-500.0,0.00054794,120]
[399163108,1766130655817,-501.40878337,0.00054794,120]
[399163109,1766130655826,-500.0,0.00054794,120]
[399163110,1766130655835,-500.0,0.00054794,120]
[399163111,1766130655844,-500.0,0.00054794,120]
[399163112,1766130655853,-504.55397185,0.00054794,120]
[399163113,1766130655863,-500.0,0.00054794,120]
[399163114,1766130655872,-500.0,0.00054794,120]
[399163115,1766130655881,-502.31851363,0.00054794,120]
[399163116,1766130655890,-505.75748208,0.00054794,120]
[399163117,1766130655899,-500.0,0.00054794,120]
[399163118,1766130655909,-252.10681063,0.00054794,120]
[399163119,1766130655918,-500.0,0.00054794,30]
[399163120,1766130655928,-500.0,0.00054794,120]
[399163121,1766130655937,-501.99694029,0.00054794,120]
[399163122,1766130655946,-500.0,0.00054794,120]
[399163123,1766130655955,-500.0,0.00054794,120]
[399163124,1766130655964,-500.0,0.00054794,120]
[399163125,1766130655974,-500.0,0.00054794,120]
[399163126,1766130655983,-500.0,0.00054794,120]
[399163127,1766130655992,-500.0,0.00054794,120]
[399163128,1766130656002,-500.0,0.00054794,120]
[399163129,1766130656011,-501.17672951,0.00054794,120]
[399163130,1766130656020,-500.0,0.00054794,120]
[399163131,1766130656029,-527.57737455,0.00054794,120]
[399163132,1766130656039,-500.0,0.00054794,120]
[399163133,1766130656048,-500.0,0.00054794,120]
[399163134,1766130656057,-502.63239074,0.00054794,120]
[399163135,1766130656067,-500.0,0.00054794,120]
[399163136,1766130656077,-500.0,0.00054794,120]
[399163137,1766130656086,-500.0,0.00054794,120]
[399163138,1766130656096,-526.69183495,0.00054794,120]
[399163139,1766130656105,-500.0,0.00054794,120]
[399163140,1766130656114,-502.73405557,0.00054794,120]
[399163141,1766130656123,-501.3650698,0.00054794,120]
[399163142,1766130656133,-502.68025678,0.00054794,120]
[399163143,1766130656142,-500.0,0.00054794,60]
[399163144,1766130656152,-500.0,0.00054794,120]
[399163145,1766130656162,-500.0,0.00054794,120]
[399163146,1766130656171,-538.52,0.00054794,120]
[399163147,1766130656180,-589.63060527,0.00054794,120]
[399163148,1766130656190,-500.0,0.00054794,120]
[399163149,1766130656200,-500.0,0.00054794,120]
[399163150,1766130656211,-500.0,0.00054794,120]
[399163151,1766130656220,-500.0,0.00054794,120]
[399163152,1766130656230,-500.0,0.00054794,120]
[399163153,1766130656240,-502.84481371,0.00054794,120]
[399163154,1766130656250,-500.0,0.00054794,120]
[399163155,1766130656260,-500.0,0.00054794,120]
[399163156,1766130656269,-500.0,0.00054794,120]
[399163157,1766130656281,-504.19378711,0.00054794,120]
[399163158,1766130656290,-501.21700786,0.00054794,120]